[Event "Early Titled Tuesday Blitz | February 8 2022"]
[White "Maurizzi, Marc`Andria"]
[Black "Mosutha, Thuso"]
[WhiteFideId "36083534"]
[BlackFideId "11302550"]
[WhiteElo "2186"]
[BlackElo "2028"]
[Result "1-0"]
[Round "01"]
[TimeControl "180+1"]
[Date "2022.02.08"]
[WhiteClock "0:00:15"]
[BlackClock "0:00:01"]

1. e4 {[%clk 0:02:58]}  c5 {[%clk 0:02:59]} 2. Nf3 {[%clk 0:02:58]}  d6 {[%clk 0:03:00]} 3. d4 {[%clk 0:02:58]}  cxd4 {[%clk 0:03:00]} 4. Nxd4 {[%clk 0:02:58]}  Nf6 {[%clk 0:03:01]} 5. Nc3 {[%clk 0:02:59]}  a6 {[%clk 0:03:00]} 6. Bg5 {[%clk 0:02:54]}  e6 {[%clk 0:02:59]} 7. f4 {[%clk 0:02:48]}  Be7 {[%clk 0:02:59]} 8. Qd3 {[%clk 0:02:46]}  O-O {[%clk 0:02:55]} 9. O-O-O {[%clk 0:02:46]}  Nc6 {[%clk 0:02:54]} 10. Nxc6 {[%clk 0:02:45]}  bxc6 {[%clk 0:02:54]} 11. Qh3 {[%clk 0:02:45]}  h6 {[%clk 0:02:43]} 12. Bxf6 {[%clk 0:02:35]}  Bxf6 {[%clk 0:02:42]} 13. e5 {[%clk 0:02:36]}  Be7 {[%clk 0:02:37]} 14. exd6 {[%clk 0:02:24]}  Bxd6 {[%clk 0:02:31]} 15. Qe3 {[%clk 0:02:21]}  Qc7 {[%clk 0:02:23]} 16. g3 {[%clk 0:02:20]}  Bb7 {[%clk 0:02:21]} 17. Bg2 {[%clk 0:02:18]}  Rfd8 {[%clk 0:02:21]} 18. Rd3 {[%clk 0:02:12]}  Be7 {[%clk 0:02:16]} 19. Rhd1 {[%clk 0:02:11]}  Rxd3 {[%clk 0:02:11]} 20. Rxd3 {[%clk 0:02:12]}  Rd8 {[%clk 0:02:11]} 21. Rxd8+ {[%clk 0:01:46]}  Qxd8 {[%clk 0:02:12]} 22. Qa7 {[%clk 0:01:34]}  Qd7 {[%clk 0:02:10]} 23. Qb6 {[%clk 0:01:26]}  Bf6 {[%clk 0:02:03]} 24. Ne4 {[%clk 0:00:59]}  Bd4 {[%clk 0:02:02]} 25. Qb3 {[%clk 0:00:58]}  f5 {[%clk 0:01:49]} 26. Nd2 {[%clk 0:00:55]}  Bg1 {[%clk 0:01:27]} 27. h4 {[%clk 0:00:41]}  Kh7 {[%clk 0:01:22]} 28. a3 {[%clk 0:00:39]}  a5 {[%clk 0:01:04]} 29. h5 {[%clk 0:00:29]}  Ba6 {[%clk 0:01:02]} 30. Nf3 {[%clk 0:00:23]}  Be2 {[%clk 0:00:51]} 31. Kb1 {[%clk 0:00:21]}  Qd1+ {[%clk 0:00:41]} 32. Ka2 {[%clk 0:00:21]}  c5 {[%clk 0:00:15]} 33. Nxg1 {[%clk 0:00:19]}  Qxg1 {[%clk 0:00:13]} 34. Bc6 {[%clk 0:00:17]}  Qf1 {[%clk 0:00:10]} 35. Qc3 {[%clk 0:00:16]}  Bc4+ {[%clk 0:00:08]} 36. b3 {[%clk 0:00:16]}  Be2 {[%clk 0:00:04]} 37. a4 {[%clk 0:00:16]}  Qg1 {[%clk 0:00:03]} 38. Be8 {[%clk 0:00:15]}  Bg4 {[%clk 0:00:01]} 39. Bg6+ {[%clk 0:00:15]}  Kg8 {[%clk 0:00:01]} 40. Qxa5 {[%clk 0:00:15]}  Kf8 {[%clk 0:00:01]} 41. Qd8# {[%clk 0:00:15]} 1-0


[Site "https://www.chess.com"]

[Event "Early Titled Tuesday Blitz | February 8 2022"]
[White "Molina, Roberto Junio Brito"]
[Black "Karabalis, Harilos"]
[WhiteFideId "2109450"]
[BlackFideId "4621808"]
[WhiteElo "2402"]
[BlackElo "2168"]
[Result "1-0"]
[Round "01"]
[TimeControl "180+1"]
[Date "2022.02.08"]
[WhiteClock "0:00:21"]
[BlackClock "0:00:17"]

1. d4 {[%clk 0:02:53]}  Nf6 {[%clk 0:02:59]} 2. Nf3 {[%clk 0:02:45]}  d5 {[%clk 0:02:58]} 3. e3 {[%clk 0:02:46]}  c5 {[%clk 0:02:57]} 4. c3 {[%clk 0:02:46]}  Nc6 {[%clk 0:02:57]} 5. Nbd2 {[%clk 0:02:43]}  e6 {[%clk 0:02:48]} 6. Bd3 {[%clk 0:02:42]}  Bd6 {[%clk 0:02:44]} 7. O-O {[%clk 0:02:42]}  O-O {[%clk 0:02:43]} 8. dxc5 {[%clk 0:02:42]}  Bxc5 {[%clk 0:02:43]} 9. e4 {[%clk 0:02:42]}  e5 {[%clk 0:02:33]} 10. b4 {[%clk 0:02:39]}  Bd6 {[%clk 0:02:31]} 11. Bb2 {[%clk 0:02:38]}  dxe4 {[%clk 0:02:28]} 12. Nxe4 {[%clk 0:02:37]}  Nxe4 {[%clk 0:02:27]} 13. Bxe4 {[%clk 0:02:38]}  f5 {[%clk 0:02:28]} 14. Bd5+ {[%clk 0:02:36]}  Kh8 {[%clk 0:02:27]} 15. a3 {[%clk 0:02:27]}  Qe7 {[%clk 0:02:16]} 16. c4 {[%clk 0:02:23]}  e4 {[%clk 0:01:59]} 17. Nd4 {[%clk 0:02:17]}  Nxd4 {[%clk 0:01:51]} 18. Qxd4 {[%clk 0:02:12]}  a5 {[%clk 0:01:46]} 19. c5 {[%clk 0:02:10]}  Bc7 {[%clk 0:01:44]} 20. Rad1 {[%clk 0:02:06]}  Rf6 {[%clk 0:01:40]} 21. g3 {[%clk 0:02:02]}  axb4 {[%clk 0:01:34]} 22. axb4 {[%clk 0:02:02]}  Rb8 {[%clk 0:01:34]} 23. b5 {[%clk 0:01:57]}  Be6 {[%clk 0:01:30]} 24. b6 {[%clk 0:01:49]}  Bd8 {[%clk 0:01:31]} 25. Bxe6 {[%clk 0:01:48]}  Rxe6 {[%clk 0:01:30]} 26. Qd7 {[%clk 0:01:41]}  Kg8 {[%clk 0:01:21]} 27. Rd5 {[%clk 0:01:26]}  Qxd7 {[%clk 0:01:12]} 28. Rxd7 {[%clk 0:01:27]}  Be7 {[%clk 0:01:13]} 29. Rc1 {[%clk 0:01:22]}  Kf8 {[%clk 0:01:10]} 30. Rc7 {[%clk 0:01:04]}  g6 {[%clk 0:01:07]} 31. Rd1 {[%clk 0:01:00]}  Ke8 {[%clk 0:00:55]} 32. Rdd7 {[%clk 0:00:42]}  Bxc5 {[%clk 0:00:55]} 33. Rxh7 {[%clk 0:00:42]}  Bf8 {[%clk 0:00:55]} 34. Bd4 {[%clk 0:00:40]}  Rd8 {[%clk 0:00:48]} 35. Be3 {[%clk 0:00:39]}  Re7 {[%clk 0:00:45]} 36. Rhxe7+ {[%clk 0:00:38]}  Bxe7 {[%clk 0:00:45]} 37. Rxb7 {[%clk 0:00:38]}  Rd1+ {[%clk 0:00:43]} 38. Kg2 {[%clk 0:00:39]}  Rb1 {[%clk 0:00:44]} 39. h4 {[%clk 0:00:36]}  Bd8 {[%clk 0:00:37]} 40. Rg7 {[%clk 0:00:35]}  Bxb6 {[%clk 0:00:36]} 41. Rb7 {[%clk 0:00:35]}  Bxe3 {[%clk 0:00:35]} 42. Rxb1 {[%clk 0:00:35]}  Bd4 {[%clk 0:00:33]} 43. Rb7 {[%clk 0:00:36]}  Kf8 {[%clk 0:00:32]} 44. Kf1 {[%clk 0:00:35]}  Bc5 {[%clk 0:00:31]} 45. Ke2 {[%clk 0:00:35]}  Bd4 {[%clk 0:00:31]} 46. Rd7 {[%clk 0:00:35]}  Bc5 {[%clk 0:00:29]} 47. Rc7 {[%clk 0:00:35]}  Bd4 {[%clk 0:00:29]} 48. Rc6 {[%clk 0:00:34]}  Kf7 {[%clk 0:00:29]} 49. f3 {[%clk 0:00:35]}  exf3+ {[%clk 0:00:28]} 50. Kxf3 {[%clk 0:00:36]}  Be5 {[%clk 0:00:29]} 51. Ra6 {[%clk 0:00:35]}  Bb8 {[%clk 0:00:27]} 52. Rb6 {[%clk 0:00:35]}  Be5 {[%clk 0:00:27]} 53. Rb7+ {[%clk 0:00:34]}  Kf6 {[%clk 0:00:27]} 54. Ra7 {[%clk 0:00:34]}  Bd6 {[%clk 0:00:25]} 55. Ra6 {[%clk 0:00:35]}  Ke7 {[%clk 0:00:25]} 56. g4 {[%clk 0:00:35]}  fxg4+ {[%clk 0:00:25]} 57. Kxg4 {[%clk 0:00:35]}  Kd7 {[%clk 0:00:24]} 58. Kg5 {[%clk 0:00:23]}  Be7+ {[%clk 0:00:24]} 59. Kg4 {[%clk 0:00:23]}  Bd6 {[%clk 0:00:25]} 60. Rb6 {[%clk 0:00:22]}  Ke7 {[%clk 0:00:24]} 61. Rc6 {[%clk 0:00:21]}  Kd7 {[%clk 0:00:24]} 62. Ra6 {[%clk 0:00:20]}  Ke7 {[%clk 0:00:20]} 63. Kg5 {[%clk 0:00:21]}  Kd7 {[%clk 0:00:18]} 64. Kxg6 {[%clk 0:00:21]}  Bg3 {[%clk 0:00:17]} 65. h5 {[%clk 0:00:21]} 1-0


[Site "https://www.chess.com"]

[Event "Early Titled Tuesday Blitz | February 8 2022"]
[White "Nepomniachtchi, Ian"]
[Black "Loay, Sameer"]
[WhiteFideId "4168119"]
[BlackFideId "8104239"]
[WhiteElo "2740"]
[BlackElo "2040"]
[Result "1-0"]
[Round "01"]
[TimeControl "180+1"]
[Date "2022.02.08"]
[WhiteClock "0:02:39"]
[BlackClock "0:00:15"]

1. e4 {[%clk 0:03:00]}  d6 {[%clk 0:02:55]} 2. d4 {[%clk 0:02:59]}  g6 {[%clk 0:02:56]} 3. Nc3 {[%clk 0:02:59]}  Bg7 {[%clk 0:02:56]} 4. Be3 {[%clk 0:03:00]}  a6 {[%clk 0:02:57]} 5. h4 {[%clk 0:02:59]}  h5 {[%clk 0:02:57]} 6. Nf3 {[%clk 0:02:57]}  b5 {[%clk 0:02:57]} 7. Qd2 {[%clk 0:02:55]}  Bb7 {[%clk 0:02:57]} 8. Bd3 {[%clk 0:02:55]}  Nf6 {[%clk 0:02:57]} 9. Ng5 {[%clk 0:02:55]}  Ng4 {[%clk 0:02:57]} 10. O-O-O {[%clk 0:02:54]}  Nxe3 {[%clk 0:02:54]} 11. fxe3 {[%clk 0:02:54]}  Nd7 {[%clk 0:02:42]} 12. Rhf1 {[%clk 0:02:51]}  O-O {[%clk 0:02:42]} 13. Qe2 {[%clk 0:02:47]}  c5 {[%clk 0:02:24]} 14. e5 {[%clk 0:02:44]}  dxe5 {[%clk 0:02:05]} 15. Rxf7 {[%clk 0:02:43]}  Rxf7 {[%clk 0:01:57]} 16. Bxg6 {[%clk 0:02:44]}  Rf6 {[%clk 0:01:27]} 17. Qxh5 {[%clk 0:02:42]}  Rxg6 {[%clk 0:01:18]} 18. Qh7+ {[%clk 0:02:41]}  Kf8 {[%clk 0:01:18]} 19. Qxg6 {[%clk 0:02:42]}  Qe8 {[%clk 0:00:15]} 20. Ne6+ {[%clk 0:02:39]} 1-0


[Site "https://www.chess.com"]

[Event "Early Titled Tuesday Blitz | February 8 2022"]
[White "Nguyen, Ngoc Truong Son"]
[Black "Gracia Alvarez, Gerardo Antonio"]
[WhiteFideId "12401110"]
[BlackFideId "5109124"]
[WhiteElo "2596"]
[BlackElo "2139"]
[Result "1/2-1/2"]
[Round "01"]
[TimeControl "180+1"]
[Date "2022.02.08"]
[WhiteClock "0:00:48"]
[BlackClock "0:00:31"]

1. d4 {[%clk 0:02:58]}  Nf6 {[%clk 0:02:59]} 2. Nf3 {[%clk 0:02:58]}  g6 {[%clk 0:02:58]} 3. c4 {[%clk 0:02:55]}  c5 {[%clk 0:02:58]} 4. g3 {[%clk 0:02:53]}  Bg7 {[%clk 0:02:55]} 5. Bg2 {[%clk 0:02:52]}  O-O {[%clk 0:02:55]} 6. O-O {[%clk 0:02:52]}  cxd4 {[%clk 0:02:55]} 7. Nxd4 {[%clk 0:02:52]}  d5 {[%clk 0:02:55]} 8. Na3 {[%clk 0:02:41]}  Nc6 {[%clk 0:02:45]} 9. Ndb5 {[%clk 0:02:30]}  Be6 {[%clk 0:02:34]} 10. Bf4 {[%clk 0:02:19]}  Rc8 {[%clk 0:02:28]} 11. Nd4 {[%clk 0:01:56]}  Nxd4 {[%clk 0:02:18]} 12. Qxd4 {[%clk 0:01:57]}  dxc4 {[%clk 0:02:08]} 13. Qxa7 {[%clk 0:01:55]}  Nd5 {[%clk 0:01:53]} 14. Rad1 {[%clk 0:01:43]}  Bxb2 {[%clk 0:01:39]} 15. Nc2 {[%clk 0:01:40]}  Qb6 {[%clk 0:01:27]} 16. Qxb6 {[%clk 0:01:39]}  Nxb6 {[%clk 0:01:28]} 17. Bxb7 {[%clk 0:01:39]}  Rcd8 {[%clk 0:01:23]} 18. Be4 {[%clk 0:01:31]}  Nd5 {[%clk 0:01:16]} 19. Bh6 {[%clk 0:01:24]}  Rfe8 {[%clk 0:01:04]} 20. Rb1 {[%clk 0:01:11]}  Bg7 {[%clk 0:00:58]} 21. Bxg7 {[%clk 0:01:07]}  Kxg7 {[%clk 0:00:59]} 22. Bxd5 {[%clk 0:01:07]}  Rxd5 {[%clk 0:00:56]} 23. Rfd1 {[%clk 0:01:01]}  Rxd1+ {[%clk 0:00:47]} 24. Rxd1 {[%clk 0:01:01]}  Ra8 {[%clk 0:00:47]} 25. a3 {[%clk 0:01:00]}  Bf5 {[%clk 0:00:45]} 26. Ne3 {[%clk 0:00:59]}  c3 {[%clk 0:00:36]} 27. Ra1 {[%clk 0:00:54]}  c2 {[%clk 0:00:32]} 28. Rc1 {[%clk 0:00:53]}  Rxa3 {[%clk 0:00:30]} 29. Nxf5+ {[%clk 0:00:48]}  gxf5 {[%clk 0:00:31]} 30. Rxc2 {[%clk 0:00:48]}  e6 {[%clk 0:00:31]} 31. Kg2 {[%clk 0:00:48]}  Ra4 {[%clk 0:00:31]} 1/2-1/2


[Site "https://www.chess.com"]

[Event "Early Titled Tuesday Blitz | February 8 2022"]
[White "Niemann, Hans Moke"]
[Black "Dauner, Benedikt"]
[WhiteFideId "2093596"]
[BlackFideId "16225899"]
[WhiteElo "2636"]
[BlackElo "2230"]
[Result "1-0"]
[Round "01"]
[TimeControl "180+1"]
[Date "2022.02.08"]
[WhiteClock "0:01:03"]
[BlackClock "0:00:06"]

1. d4 {[%clk 0:03:00]}  d5 {[%clk 0:02:59]} 2. Nc3 {[%clk 0:02:59]}  Nf6 {[%clk 0:02:57]} 3. Bf4 {[%clk 0:02:56]}  a6 {[%clk 0:02:53]} 4. e3 {[%clk 0:02:53]}  e6 {[%clk 0:02:52]} 5. g4 {[%clk 0:02:49]}  Bb4 {[%clk 0:02:45]} 6. g5 {[%clk 0:02:44]}  Ne4 {[%clk 0:02:43]} 7. Ne2 {[%clk 0:02:42]}  Nxg5 {[%clk 0:02:40]} 8. Bg2 {[%clk 0:02:37]}  Ne4 {[%clk 0:02:18]} 9. Bxe4 {[%clk 0:02:37]}  dxe4 {[%clk 0:02:18]} 10. a3 {[%clk 0:02:37]}  Bxc3+ {[%clk 0:02:03]} 11. Nxc3 {[%clk 0:02:38]}  f5 {[%clk 0:01:57]} 12. Be5 {[%clk 0:02:27]}  O-O {[%clk 0:01:50]} 13. Rg1 {[%clk 0:02:25]}  Rf7 {[%clk 0:01:50]} 14. d5 {[%clk 0:02:18]}  Qe7 {[%clk 0:01:33]} 15. Qd4 {[%clk 0:01:59]}  c5 {[%clk 0:01:21]} 16. Qd2 {[%clk 0:01:49]}  exd5 {[%clk 0:01:11]} 17. Bf4 {[%clk 0:01:26]}  Be6 {[%clk 0:01:06]} 18. Nxd5 {[%clk 0:01:25]}  Bxd5 {[%clk 0:01:05]} 19. Qxd5 {[%clk 0:01:26]}  Nc6 {[%clk 0:01:03]} 20. O-O-O {[%clk 0:01:22]}  Rd8 {[%clk 0:00:56]} 21. Qc4 {[%clk 0:01:22]}  b5 {[%clk 0:00:50]} 22. Rxd8+ {[%clk 0:01:21]}  Nxd8 {[%clk 0:00:46]} 23. Qd5 {[%clk 0:01:22]}  Ne6 {[%clk 0:00:37]} 24. Be5 {[%clk 0:01:11]}  g6 {[%clk 0:00:23]} 25. Rd1 {[%clk 0:01:08]}  Rf8 {[%clk 0:00:21]} 26. Bd6 {[%clk 0:01:07]}  Qf7 {[%clk 0:00:09]} 27. Bxf8 {[%clk 0:01:06]}  Nxf8 {[%clk 0:00:10]} 28. Qxc5 {[%clk 0:01:05]}  Ne6 {[%clk 0:00:09]} 29. Qc8+ {[%clk 0:01:04]}  Nf8 {[%clk 0:00:07]} 30. Kb1 {[%clk 0:01:04]}  g5 {[%clk 0:00:06]} 31. Qxa6 {[%clk 0:01:04]}  f4 {[%clk 0:00:06]} 32. Qxb5 {[%clk 0:01:04]}  h6 {[%clk 0:00:06]} 33. Qd5 {[%clk 0:01:03]}  Kg7 {[%clk 0:00:05]} 34. Qxf7+ {[%clk 0:01:02]}  Kxf7 {[%clk 0:00:06]} 35. a4 {[%clk 0:01:03]}  Ne6 {[%clk 0:00:06]} 36. a5 {[%clk 0:01:03]}  f3 {[%clk 0:00:06]} 37. a6 {[%clk 0:01:03]} 1-0


[Site "https://www.chess.com"]

[Event "Early Titled Tuesday Blitz | February 8 2022"]
[White "Obolenskikh, Dmitry"]
[Black "Dushyant Sharma"]
[WhiteFideId "4156013"]
[BlackFideId "25065130"]
[WhiteElo "2512"]
[BlackElo "2012"]
[Result "1-0"]
[Round "01"]
[TimeControl "180+1"]
[Date "2022.02.08"]
[WhiteClock "0:02:07"]
[BlackClock "0:00:32"]

1. Nf3 {[%clk 0:03:00]}  d5 {[%clk 0:02:01]} 2. e3 {[%clk 0:02:49]}  e6 {[%clk 0:01:59]} 3. c4 {[%clk 0:02:49]}  f5 {[%clk 0:01:55]} 4. b3 {[%clk 0:02:48]}  Be7 {[%clk 0:01:54]} 5. Ba3 {[%clk 0:02:45]}  Bf6 {[%clk 0:01:52]} 6. d4 {[%clk 0:02:42]}  Ne7 {[%clk 0:01:52]} 7. Nbd2 {[%clk 0:02:38]}  O-O {[%clk 0:01:52]} 8. g3 {[%clk 0:02:38]}  c6 {[%clk 0:01:49]} 9. Bg2 {[%clk 0:02:36]}  b6 {[%clk 0:01:45]} 10. O-O {[%clk 0:02:35]}  Ba6 {[%clk 0:01:45]} 11. Rc1 {[%clk 0:02:31]}  Nd7 {[%clk 0:01:42]} 12. Bd6 {[%clk 0:02:28]}  Re8 {[%clk 0:01:41]} 13. Re1 {[%clk 0:02:27]}  Ng6 {[%clk 0:01:40]} 14. h4 {[%clk 0:02:21]}  Rc8 {[%clk 0:00:50]} 15. a4 {[%clk 0:02:15]}  b5 {[%clk 0:00:47]} 16. axb5 {[%clk 0:02:13]}  cxb5 {[%clk 0:00:46]} 17. c5 {[%clk 0:02:13]}  Nb8 {[%clk 0:00:41]} 18. Ra1 {[%clk 0:02:08]}  Be7 {[%clk 0:00:32]} 19. Bxb8 {[%clk 0:02:07]} 1-0


[Site "https://www.chess.com"]

[Event "Early Titled Tuesday Blitz | February 8 2022"]
[White "Orozbaev, Eldiar"]
[Black "Kujawski, Adam"]
[WhiteFideId "13802240"]
[BlackFideId "1100920"]
[WhiteElo "2050"]
[BlackElo "2053"]
[Result "1-0"]
[Round "01"]
[TimeControl "180+1"]
[Date "2022.02.08"]
[WhiteClock "0:02:02"]
[BlackClock "0:00:08"]

1. e4 {[%clk 0:03:00]}  e5 {[%clk 0:02:57]} 2. Nf3 {[%clk 0:03:00]}  Nc6 {[%clk 0:02:57]} 3. d4 {[%clk 0:03:01]}  exd4 {[%clk 0:02:57]} 4. c3 {[%clk 0:03:01]}  d3 {[%clk 0:02:56]} 5. Bxd3 {[%clk 0:03:01]}  Bc5 {[%clk 0:02:55]} 6. O-O {[%clk 0:02:59]}  d6 {[%clk 0:02:55]} 7. Qc2 {[%clk 0:02:59]}  Nge7 {[%clk 0:02:49]} 8. Bg5 {[%clk 0:02:59]}  h6 {[%clk 0:02:44]} 9. Bh4 {[%clk 0:02:57]}  Bg4 {[%clk 0:02:20]} 10. Nbd2 {[%clk 0:02:56]}  Qd7 {[%clk 0:02:07]} 11. b4 {[%clk 0:02:53]}  Bb6 {[%clk 0:02:06]} 12. a4 {[%clk 0:02:53]}  a5 {[%clk 0:01:48]} 13. b5 {[%clk 0:02:54]}  Ne5 {[%clk 0:01:23]} 14. Nxe5 {[%clk 0:02:53]}  dxe5 {[%clk 0:01:23]} 15. Nc4 {[%clk 0:02:54]}  Ng6 {[%clk 0:01:17]} 16. Bg3 {[%clk 0:02:52]}  Qe6 {[%clk 0:01:12]} 17. h3 {[%clk 0:02:49]}  Bh5 {[%clk 0:01:09]} 18. Be2 {[%clk 0:02:47]}  Bxe2 {[%clk 0:01:06]} 19. Qxe2 {[%clk 0:02:48]}  O-O-O {[%clk 0:01:03]} 20. Rad1 {[%clk 0:02:47]}  Kb8 {[%clk 0:00:21]} 21. Nxb6 {[%clk 0:02:45]}  Qxb6 {[%clk 0:00:21]} 22. Qc4 {[%clk 0:02:44]}  Qe6 {[%clk 0:00:10]} 23. Qc5 {[%clk 0:02:42]}  b6 {[%clk 0:00:10]} 24. Qe3 {[%clk 0:02:41]}  Kc8 {[%clk 0:00:08]} 25. Kh2 {[%clk 0:02:40]}  Rxd1 {[%clk 0:00:08]} 26. Rxd1 {[%clk 0:02:40]}  Rd8 {[%clk 0:00:09]} 27. Qe2 {[%clk 0:02:37]}  Rxd1 {[%clk 0:00:08]} 28. Qxd1 {[%clk 0:02:38]}  Qd6 {[%clk 0:00:08]} 29. Qg4+ {[%clk 0:02:37]}  Kb7 {[%clk 0:00:08]} 30. Qf5 {[%clk 0:02:37]}  Qe6 {[%clk 0:00:08]} 31. Qxe6 {[%clk 0:02:32]}  fxe6 {[%clk 0:00:08]} 32. h4 {[%clk 0:02:33]}  c6 {[%clk 0:00:08]} 33. c4 {[%clk 0:02:32]}  cxb5 {[%clk 0:00:08]} 34. cxb5 {[%clk 0:02:33]}  Kc7 {[%clk 0:00:08]} 35. h5 {[%clk 0:02:33]}  Nf4 {[%clk 0:00:08]} 36. Bxf4 {[%clk 0:02:24]}  exf4 {[%clk 0:00:08]} 37. Kh3 {[%clk 0:02:25]}  Kd6 {[%clk 0:00:08]} 38. Kg4 {[%clk 0:02:25]}  Kc5 {[%clk 0:00:06]} 39. Kxf4 {[%clk 0:02:16]}  Kb4 {[%clk 0:00:07]} 40. Ke5 {[%clk 0:02:13]}  Kxa4 {[%clk 0:00:08]} 41. Kxe6 {[%clk 0:02:14]}  Kb3 {[%clk 0:00:05]} 42. Kf7 {[%clk 0:02:09]}  a4 {[%clk 0:00:06]} 43. e5 {[%clk 0:02:10]}  a3 {[%clk 0:00:07]} 44. e6 {[%clk 0:02:11]}  a2 {[%clk 0:00:08]} 45. e7 {[%clk 0:02:12]}  a1=Q {[%clk 0:00:08]} 46. e8=Q {[%clk 0:02:12]}  Qf6+ {[%clk 0:00:08]} 47. Kg8 {[%clk 0:02:13]}  Qxf2 {[%clk 0:00:08]} 48. Qf7+ {[%clk 0:02:02]}  Kb4 {[%clk 0:00:08]} 49. Qxf2 {[%clk 0:02:02]} 1-0


[Site "https://www.chess.com"]

[Event "Early Titled Tuesday Blitz | February 8 2022"]
[White "Pakleza, Zbigniew"]
[Black "Atzl, Florian"]
[WhiteFideId "1119290"]
[BlackFideId "1635891"]
[WhiteElo "2467"]
[BlackElo "2085"]
[Result "1-0"]
[Round "01"]
[TimeControl "180+1"]
[Date "2022.02.08"]
[WhiteClock "0:00:25"]
[BlackClock "0:00:38"]

1. d4 {[%clk 0:03:00]}  Nf6 {[%clk 0:02:57]} 2. Nf3 {[%clk 0:03:00]}  c5 {[%clk 0:02:53]} 3. c3 {[%clk 0:03:00]}  Qc7 {[%clk 0:02:53]} 4. Bg5 {[%clk 0:02:59]}  Nc6 {[%clk 0:02:49]} 5. e3 {[%clk 0:02:54]}  g6 {[%clk 0:02:45]} 6. Nbd2 {[%clk 0:02:46]}  Bg7 {[%clk 0:02:42]} 7. Be2 {[%clk 0:02:46]}  d6 {[%clk 0:02:38]} 8. h3 {[%clk 0:02:43]}  O-O {[%clk 0:02:38]} 9. O-O {[%clk 0:02:42]}  Re8 {[%clk 0:02:38]} 10. Bh4 {[%clk 0:02:41]}  e5 {[%clk 0:02:34]} 11. Bg3 {[%clk 0:02:32]}  cxd4 {[%clk 0:02:27]} 12. cxd4 {[%clk 0:02:28]}  e4 {[%clk 0:02:27]} 13. Ne1 {[%clk 0:02:27]}  Bf5 {[%clk 0:02:22]} 14. Rc1 {[%clk 0:02:19]}  Qd7 {[%clk 0:02:15]} 15. Nc4 {[%clk 0:02:06]}  Bf8 {[%clk 0:02:13]} 16. Nc2 {[%clk 0:01:57]}  Rac8 {[%clk 0:02:11]} 17. N2a3 {[%clk 0:01:49]}  Nb4 {[%clk 0:02:10]} 18. Qb3 {[%clk 0:01:46]}  d5 {[%clk 0:02:06]} 19. Ne5 {[%clk 0:01:40]}  Qe6 {[%clk 0:01:59]} 20. Nb5 {[%clk 0:01:35]}  Rxc1 {[%clk 0:01:38]} 21. Rxc1 {[%clk 0:01:35]}  Rc8 {[%clk 0:01:34]} 22. Rxc8 {[%clk 0:01:09]}  Qxc8 {[%clk 0:01:32]} 23. Nc3 {[%clk 0:01:10]}  Be6 {[%clk 0:01:24]} 24. Bh4 {[%clk 0:01:05]}  Nd7 {[%clk 0:01:23]} 25. Nxd7 {[%clk 0:00:51]}  Qxd7 {[%clk 0:01:24]} 26. a3 {[%clk 0:00:50]}  Nc6 {[%clk 0:01:22]} 27. Na4 {[%clk 0:00:47]}  b6 {[%clk 0:01:20]} 28. Bb5 {[%clk 0:00:43]}  Qc8 {[%clk 0:01:19]} 29. Nc3 {[%clk 0:00:38]}  Na5 {[%clk 0:01:15]} 30. Qa4 {[%clk 0:00:36]}  Qc7 {[%clk 0:01:10]} 31. Bg3 {[%clk 0:00:34]}  Bd6 {[%clk 0:01:07]} 32. Bxd6 {[%clk 0:00:34]}  Qxd6 {[%clk 0:01:08]} 33. Bf1 {[%clk 0:00:34]}  Bd7 {[%clk 0:01:04]} 34. Qb4 {[%clk 0:00:29]}  Qe6 {[%clk 0:00:53]} 35. Bb5 {[%clk 0:00:28]}  Nc6 {[%clk 0:00:52]} 36. Qa4 {[%clk 0:00:25]}  Kg7 {[%clk 0:00:44]} 37. Bxc6 {[%clk 0:00:24]}  Qxc6 {[%clk 0:00:45]} 38. Qxa7 {[%clk 0:00:24]}  Be6 {[%clk 0:00:42]} 39. Qb8 {[%clk 0:00:23]}  h5 {[%clk 0:00:38]} 40. Qe5+ {[%clk 0:00:21]}  Kg8 {[%clk 0:00:37]} 41. a4 {[%clk 0:00:19]}  Qa8 {[%clk 0:00:28]} 42. Qd6 {[%clk 0:00:17]}  Qa5 {[%clk 0:00:28]} 43. Kh2 {[%clk 0:00:17]}  Qa7 {[%clk 0:00:26]} 44. Nxd5 {[%clk 0:00:14]}  Bxd5 {[%clk 0:00:25]} 45. Qxd5 {[%clk 0:00:15]}  Qxa4 {[%clk 0:00:25]} 46. Qd8+ {[%clk 0:00:14]}  Kg7 {[%clk 0:00:25]} 47. Qxb6 {[%clk 0:00:15]}  Qd7 {[%clk 0:00:23]} 48. Qc5 {[%clk 0:00:14]}  Qb7 {[%clk 0:00:23]} 49. b4 {[%clk 0:00:14]}  Qb8+ {[%clk 0:00:23]} 50. Qe5+ {[%clk 0:00:14]}  Qxe5+ {[%clk 0:00:22]} 51. dxe5 {[%clk 0:00:15]}  Kf8 {[%clk 0:00:23]} 52. Kg3 {[%clk 0:00:14]}  Ke7 {[%clk 0:00:24]} 53. Kf4 {[%clk 0:00:15]}  Kd7 {[%clk 0:00:24]} 54. Kxe4 {[%clk 0:00:15]}  Kc6 {[%clk 0:00:25]} 55. e6 {[%clk 0:00:16]}  fxe6 {[%clk 0:00:25]} 56. Ke5 {[%clk 0:00:17]}  Kb5 {[%clk 0:00:26]} 57. Kxe6 {[%clk 0:00:17]}  Kxb4 {[%clk 0:00:27]} 58. Kf6 {[%clk 0:00:18]}  Kc3 {[%clk 0:00:28]} 59. Kxg6 {[%clk 0:00:18]}  Kd3 {[%clk 0:00:29]} 60. Kxh5 {[%clk 0:00:19]}  Ke2 {[%clk 0:00:29]} 61. g4 {[%clk 0:00:19]}  Kf3 {[%clk 0:00:29]} 62. g5 {[%clk 0:00:20]}  Ke2 {[%clk 0:00:30]} 63. g6 {[%clk 0:00:21]}  Kf1 {[%clk 0:00:31]} 64. g7 {[%clk 0:00:22]}  Ke2 {[%clk 0:00:32]} 65. f4 {[%clk 0:00:23]}  Kf3 {[%clk 0:00:33]} 66. f5 {[%clk 0:00:24]}  Ke4 {[%clk 0:00:33]} 67. f6 {[%clk 0:00:25]}  Kf5 {[%clk 0:00:34]} 68. f7 {[%clk 0:00:25]}  Ke6 {[%clk 0:00:35]} 69. f8=Q {[%clk 0:00:25]}  Ke5 {[%clk 0:00:36]} 70. g8=Q {[%clk 0:00:25]}  Ke4 {[%clk 0:00:37]} 71. Qf4+ {[%clk 0:00:25]}  Kd3 {[%clk 0:00:38]} 1-0


[Site "https://www.chess.com"]